[Event "GER-chT Youth Countries 2018"]
[Site "Wurzburg"]
[Date "2018.10.04"]
[Round "3"]
[White "Bluhm, Sonja Maria"]
[Black "Kopylov, Daniel"]
[Result "1-0"]
[ECO "D00"]
[WhiteElo "2281"]
[BlackElo "2192"]
[Annotator "NA"]
[PlyCount "99"]
[EventDate "2018.10.03"]
[EventType "team-tourn"]
[EventCountry "GER"]
[SourceTitle "playchess.com"]
[Source "ChessBase"]
[SourceQuality "1"]
[TimeControl "40/5400+30:1800+30"]

1. d4 {[%emt 0:00:00]} d5 {[%emt 0:00:17]} 2. Bf4 {[%emt 0:00:00]} Nf6 {[%emt 0:00:35]} 3. e3 {[%emt 0:00:00]} Bf5 {[%emt 0:00:49]} 4. c3 {[%emt 0:00:17]} e6 {[%emt 0:00:31]} 5. Nd2 {[%emt 0:00:12]} Bd6 {[%emt 0:01:02]} 6. Bg3 {[%emt 0:00:37]} O-O {[%emt 0:02:50]} 7. Ngf3 {[%emt 0:00:07]} Nc6 {[%emt 0:02:03]} 8. Be2 {[%emt 0:02:07]} Re8 {[%emt 0:02:11]} 9. Bb5 {[%emt 0:08:54]} a6 {[%emt 0:02:09]} 10. Bxc6 {[%emt 0:04:35]} bxc6 {[%emt 0:00:07]} 11. Ne5 {[%emt 0:00:51]} c5 {[%emt 0:13:14]} 12. dxc5 {[%emt 0:11:59]} Bxe5 {[%emt 0:02:21]} 13. Bxe5 {[%emt 0:00:12]} Nd7 {[%emt 0:00:16]} 14. Bg3 {[%emt 0:10:24]} Nxc5 {[%emt 0:03:21]} 15. O-O {[%emt 0:00:19]} Bd3 {[%emt 0:01:28]} 16. Re1 {[%emt 0:00:21]} Bg6 {[%emt 0:00:51]} 17. Nf3 {[%emt 0:15:11]} Rb8 {[%emt 0:09:12]} 18. Re2 {[%emt 0:04:23]} Bh5 {[%emt 0:03:04]} 19. Qd4 {[%emt 0:02:29]} Ne4 {[%emt 0:04:12]} 20. Rc2 {[%emt 0:03:35]} Bxf3 {[%emt 0:09:53]} 21. gxf3 {[%emt 0:00:05]} e5 {[%emt 0:00:33]} 22. Qd1 {[%emt 0:14:38]} Ng5 {[%emt 0:02:38]} 23. h4 {[%emt 0:00:51]} Ne6 {[%emt 0:01:39]} 24. Rd2 {[%emt 0:00:43] [#]} d4 $1 {[%emt 0:08:44]} 25. cxd4 {[%emt 0:02:43]} exd4 {[%emt 0:00:17]} 26. exd4 {[%emt 0:00:23]} Qd5 {[%emt 0:02:25]} 27. Rc1 {[%emt 0:03:12]} Re7 {[%emt 0:01:31]} 28. Rc3 {[%emt 0:05:28]} Rd7 {[%emt 0:09:40]} 29. Rcd3 {[%emt 0:01:52]} Rbd8 {[%emt 0:01:27]} 30. Kg2 {[%emt 0:00:46]} Qxa2 $2 {[%emt 0:03:57] [#]} (30... a5 $11) 31. d5 $1 {[%emt 0:00:44]} Nf8 {[%emt 0:03:01] [#]} 32. d6 {[%emt 0:02:09]} (32. Ra3 $1 $16 {[%cal Ra3a2]} Qc4 33. Rc3) 32... cxd6 {[%emt 0:00:47]} 33. Rxd6 {[%emt 0:00:29]} Rxd6 {[%emt 0:04:47]} 34. Rxd6 {[%emt 0:01:23]} Re8 {[%emt 0:01:47]} ({Black should play} 34... Rxd6 $11 35. Qxd6 Qxb2) 35. Rd8 {[%emt 0:01:49]} Qe6 {[%emt 0:00:31]} 36. Rxe8 {[%emt 0:00:29]} Qxe8 {[%emt 0:00:06]} 37. Qd6 {[%emt 0:00:56]} Qa8 {[%emt 0:01:20]} 38. b4 {[%emt 0:01:11]} h6 {[%emt 0:01:28]} 39. Qb6 {[%emt 0:00:23]} Ne6 {[%emt 0:00:37]} 40. Bd6 {[%emt 0:01:56] [#]} (40. Bb8 $11 {bleibt in der Remisbreite.}) 40... Qd5 $1 {[%emt 0:01:41]} 41. Bg3 {[%emt 0:06:13]} Qc4 {[%emt 0:02:39]} ({Black should try} 41... Nd4 $17 42. Qb8+ Kh7) 42. Qb7 {[%emt 0:00:54]} Nd4 {[%emt 0:07:37]} 43. Qe4 {[%emt 0:04:14]} f5 {[%emt 0:03:50]} 44. Qb7 {[%emt 0:03:28]} (44. Qe8+ $11 Kh7 45. Qd7) 44... Qc6 $11 {[%emt 0:05:32]} 45. Qb8+ {[%emt 0:02:15]} Kh7 {[%emt 0:00:26]} 46. Qf4 {[%emt 0:00:26]} Qd5 {[%emt 0:01:16]} 47. Qe3 {[%emt 0:01:11]} Nc2 {[%emt 0:02:27]} 48. Qe7 {[%emt 0:01:58]} Qd2 {[%emt 0:04:49]} 49. Be5 {[%emt 0:01:46]} Ne3+ {[%emt 0:05:59]} 50. Kh3 {[%emt 0:00:31]} 1-0

[Event "GER-chT Youth Countries 2018"]
[Site "Wurzburg"]
[Date "2018.10.04"]
[Round "3"]
[White "Leeb, Simon"]
[Black "Degenhard, Simon"]
[Result "0-1"]
[ECO "D41"]
[WhiteElo "2203"]
[BlackElo "2207"]
[Annotator "NA"]
[PlyCount "158"]
[EventDate "2018.10.03"]
[EventType "team-tourn"]
[EventCountry "GER"]
[SourceTitle "playchess.com"]
[Source "ChessBase"]
[SourceQuality "1"]
[TimeControl "40/5400+30:1800+30"]

1. d4 {[%emt 0:00:00]} Nf6 {[%emt 0:00:00]} 2. c4 {[%emt 0:00:00]} e6 {[%emt 0:00:00]} 3. Nf3 {[%emt 0:01:53]} d5 {[%emt 0:00:00]} 4. Nc3 {[%emt 0:00:44]} c5 {[%emt 0:00:14]} 5. cxd5 {[%emt 0:01:02]} Nxd5 {[%emt 0:00:16]} 6. Qb3 {[%emt 0:04:59] D41: Queen's Gambit Declined: Semi-Tarrasch with 5 cxd5} (6. e4 Nxc3 7. bxc3 cxd4 8. cxd4 Bb4+ 9. Bd2 Bxd2+ 10. Qxd2 O-O 11. Rc1 b6 12. Bd3 Ba6 13. Bxa6 Nxa6 14. O-O Rc8 15. Rxc8 Qxc8 16. Rc1 Qb7 17. Qc2 Nb4 18. Qc4 a5 19. a3 {½-½ (45) Navara,D (2741)-Carlsen,M (2842) Biel 2018}) 6... Nxc3 {[%emt 0:05:48]} 7. bxc3 $146 {[%emt 0:00:19]} ({Predecessor:} 7. Qxc3 Nc6 8. dxc5 Qd5 9. b4 b5 10. e3 a6 11. Be2 Bb7 12. O-O f6 13. Rd1 Qh5 {0-1 (63) Foerster,J-Ryniecki,D Borkum 1996}) 7... Nc6 {[%emt 0:00:16]} 8. e3 {[%emt 0:04:06]} Be7 {[%emt 0:00:24]} 9. Bd3 {[%emt 0:01:31]} O-O {[%emt 0:00:32]} 10. Bb1 {[%emt 0:03:18]} b6 {[%emt 0:06:41]} 11. h4 {[%emt 0:09:35]} Qd7 {[%emt 0:09:11]} 12. Qd1 {[%emt 0:18:17]} f5 {[%emt 0:11:26]} 13. O-O {[%emt 0:03:11]} Bb7 {[%emt 0:04:01]} 14. e4 {[%emt 0:04:50]} Rad8 {[%emt 0:04:09]} 15. Bb2 {[%emt 0:07:30]} cxd4 {[%emt 0:05:30]} 16. cxd4 {[%emt 0:01:08]} Bf6 {[%emt 0:01:09]} 17. exf5 {[%emt 0:06:34]} exf5 {[%emt 0:00:38]} 18. Qb3+ {[%emt 0:00:26]} Kh8 {[%emt 0:04:33]} 19. Ne5 {[%emt 0:02:39]} Nxe5 {[%emt 0:10:33]} 20. dxe5 {[%emt 0:00:04]} Bxh4 {[%emt 0:01:08]} 21. Qh3 {[%emt 0:02:00]} Be7 {[%emt 0:02:08]} 22. Bc2 {[%emt 0:01:20]} Qd2 {[%emt 0:04:39]} 23. Rac1 {[%emt 0:01:07]} Bc5 {[%emt 0:03:13]} 24. e6 {[%emt 0:03:56]} Rde8 {[%emt 0:04:15]} (24... Qg5 $17 25. Rcd1 Rxd1 26. Rxd1 Qf4) 25. Qg3 {[%emt 0:07:20]} Qh6 {[%emt 0:01:29]} 26. Rcd1 {[%emt 0:00:56] [#]} (26. Bb3 $11 {remains equal.}) 26... Rxe6 {[%emt 0:03:55] [#]} (26... Bc8 $142 $1 27. Ba3 f4) 27. Bxf5 $1 {[%emt 0:01:28]} Rxf5 {[%emt 0:07:05]} 28. Qb8+ {[%emt 0:00:08]} (28. Rd8+ $17 {was the only defense.} Rf8 29. Rxf8+ Bxf8 30. Qb8) 28... Rf8 {[%emt 0:00:58]} 29. Rd8 $2 {[%emt 0:01:40] [#]} (29. Qxb7 $19 Re2 30. Bd4) 29... Kg8 $2 {[%emt 0:00:57]} (29... Bxf2+ $1 {mates} 30. Rxf2 Re1+ 31. Rf1 Rexf1#) 30. Rxf8+ {[%emt 0:00:05]} Bxf8 {[%emt 0:00:06]} 31. Qxb7 {[%emt 0:00:04]} Re7 {[%emt 0:03:47]} 32. Qa8 {[%emt 0:01:56]} Qf4 {[%emt 0:02:10]} 33. Ba3 {[%emt 0:01:06]} Rd7 {[%emt 0:01:51]} 34. Re1 {[%emt 0:04:31] [#]} (34. g3) 34... Rd2 {[%emt 0:01:23]} (34... Rf7 $1 $17 35. Rf1 Qa4 36. Bxf8 Rxf8 37. Qd5+ Kh8) 35. Qxf8+ {[%emt 0:02:41]} Qxf8 {[%emt 0:00:06]} 36. Bxf8 {[%emt 0:00:05]} Kxf8 {[%emt 0:00:04]} 37. a4 {[%emt 0:00:05]} Rd4 {[%emt 0:00:37]} 38. a5 {[%emt 0:00:55]} (38. Ra1 $142) 38... Rd7 $2 {[%emt 0:02:04]} (38... bxa5 $19 39. Re6 Rd1+ 40. Kh2 a4) 39. Re6 {[%emt 0:02:55]} Kf7 {[%emt 0:00:51]} 40. Rc6 {[%emt 0:00:07]} Rb7 {[%emt 0:00:30]} 41. a6 {[%emt 0:05:40]} Re7 {[%emt 0:00:47]} 42. Rc8 {[%emt 0:00:33]} Ke6 {[%emt 0:00:19]} 43. Rb8 {[%emt 0:01:21]} Kd6 {[%emt 0:04:40]} (43... Kd5 $17 44. f3 Kc5) 44. Kh2 {[%emt 0:00:23]} Rd7 {[%emt 0:00:29]} 45. f3 {[%emt 0:01:11]} (45. Kg3 $17) 45... Kc7 {[%emt 0:01:09]} 46. Ra8 {[%emt 0:00:10]} Kc6 {[%emt 0:00:17]} 47. Rb8 {[%emt 0:00:05]} Rf7 {[%emt 0:13:07]} 48. Kg3 {[%emt 0:00:46]} h6 {[%emt 0:00:07]} (48... b5 $17 49. Kf2 Re7) 49. Kg4 {[%emt 0:01:14]} Rd7 {[%emt 0:00:08]} 50. Kg3 $17 {[%emt 0:02:59]} Rd6 {[%emt 0:08:30]} 51. Rb7 {[%emt 0:01:02]} Rd7 {[%emt 0:00:01]} 52. Rb8 {[%emt 0:00:09]} b5 {[%emt 0:00:20]} 53. Kh3 {[%emt 0:00:10]} Kc5 {[%emt 0:00:08]} 54. Rb7 {[%emt 0:00:06]} Kc6 {[%emt 0:00:02]} 55. Rb8 {[%emt 0:00:05]} g6 {[%emt 0:00:44]} 56. Kg3 {[%emt 0:01:29]} Rd6 {[%emt 0:02:56]} 57. Rb7 {[%emt 0:00:12]} Rd7 {[%emt 0:00:03]} 58. Rb8 {[%emt 0:00:05]} h5 {[%emt 0:00:16]} 59. Kh3 {[%emt 0:05:02]} Rd6 {[%emt 0:01:02]} 60. Rb7 {[%emt 0:00:05]} Rd7 {[%emt 0:00:03]} 61. Rb8 {[%emt 0:00:03]} Rd6 {[%emt 0:00:03]} 62. Rb7 {[%emt 0:00:06]} Kc5 {[%emt 0:00:05]} 63. Rxa7 {[%emt 0:00:17]} Kb4 {[%emt 0:01:41]} 64. Ra8 {[%emt 0:01:18]} Ka4 {[%emt 0:00:25]} 65. a7 {[%emt 0:01:27]} Ra6 {[%emt 0:01:20]} 66. Kh4 {[%emt 0:00:04]} b4 {[%emt 0:00:39]} 67. Kg5 {[%emt 0:00:04]} b3 {[%emt 0:00:19]} 68. f4 {[%emt 0:00:47]} Ka3 {[%emt 0:01:12]} 69. g3 {[%emt 0:01:39]} b2 {[%emt 0:01:19]} 70. Rb8 {[%emt 0:00:04]} Rxa7 {[%emt 0:00:32]} 71. Kxg6 {[%emt 0:00:04]} Ra4 {[%emt 0:00:56]} 72. Rxb2 {[%emt 0:01:14]} Kxb2 {[%emt 0:00:01]} 73. Kxh5 {[%emt 0:01:23]} Kc3 {[%emt 0:00:16]} 74. g4 {[%emt 0:06:21]} Kd4 {[%emt 0:02:12]} 75. Kg6 {[%emt 0:00:06]} Ra6+ {[%emt 0:00:22]} 76. Kf5 {[%emt 0:00:05]} Ra5+ {[%emt 0:00:48]} 77. Kf6 {[%emt 0:00:25]} Ke4 {[%emt 0:00:10]} 78. g5 {[%emt 0:00:04]} Ra6+ {[%emt 0:00:11]} 79. Kg7 {[%emt 0:01:25]} Kxf4 {[%emt 0:00:07]} 0-1

[Event "GER-chT Youth Countries 2018"]
[Site "Wurzburg"]
[Date "2018.10.04"]
[Round "3"]
[White "Knuedel, Torben"]
[Black "Garbuz, Vitaliy"]
[Result "1/2-1/2"]
[ECO "B35"]
[WhiteElo "2135"]
[BlackElo "2182"]
[Annotator "NA"]
[PlyCount "106"]
[EventDate "2018.10.03"]
[EventType "team-tourn"]
[EventCountry "GER"]
[SourceTitle "playchess.com"]
[Source "ChessBase"]
[SourceQuality "1"]
[TimeControl "40/5400+30:1800+30"]

1. e4 {[%emt 0:00:00]} c5 {[%emt 0:00:00]} 2. Nf3 {[%emt 0:00:00]} Nc6 {[%emt 0:00:00]} 3. d4 {[%emt 0:00:00]} cxd4 {[%emt 0:00:00]} 4. Nxd4 {[%emt 0:00:01]} g6 {[%emt 0:00:08]} 5. Nc3 {[%emt 0:00:13]} Bg7 {[%emt 0:00:10]} 6. Be3 {[%emt 0:00:05]} Nf6 {[%emt 0:00:11]} 7. Bc4 {[%emt 0:00:28]} Qa5 {[%emt 0:00:24]} 8. O-O {[%emt 0:02:45]} O-O {[%emt 0:00:14]} 9. Bb3 {[%emt 0:00:26]} d6 {[%emt 0:03:23]} 10. h3 {[%emt 0:00:13]} Bd7 {[%emt 0:04:15]} 11. Nf3 {[%emt 0:04:18] B35: Sicilian: Accelerated Dragon with 5 Nc3: main line} (11. Re1 Rac8 12. Qd2 Qa6 13. f4 Rfd8 14. Rad1 b5 15. Ndxb5 Nxe4 16. Qd5 Nf6 17. Qxf7+ Kh8 18. Qc4 Qb7 19. Qe2 Rf8 {½-½ (47) Sasikiran,K (2669)-Matlakov,M (2714) Khanty-Mansiysk 2017 CBM 179 [Sagar Shah]}) 11... b5 {[%emt 0:09:20]} 12. a3 {[%emt 0:00:32]} a6 $146 {[%emt 0:02:12]} ({Predecessor:} 12... Rfc8 13. Qe2 Rab8 14. Rfd1 Be8 15. Bd2 Qb6 16. Nd5 Nxd5 17. exd5 Ne5 18. Nxe5 Bxe5 {½-½ (66) Kollars,D (2500)-Sica,M (2178) Montevideo 2017}) 13. Qe2 {[%emt 0:04:20]} Rfc8 {[%emt 0:05:34]} 14. Rad1 {[%emt 0:02:56]} Qc7 {[%emt 0:04:07]} 15. Bg5 {[%emt 0:18:43]} Qa7 {[%emt 0:24:56]} 16. Rfe1 {[%emt 0:05:23]} h6 {[%emt 0:02:58]} 17. Bxf6 {[%emt 0:04:54]} Bxf6 {[%emt 0:00:36]} 18. e5 {[%emt 0:02:43]} Bxe5 {[%emt 0:08:42]} 19. Nxe5 {[%emt 0:02:11]} Nxe5 {[%emt 0:00:34]} 20. Qd2 {[%emt 0:00:14]} Kg7 {[%emt 0:15:43]} 21. Rxe5 {[%emt 0:00:48]} dxe5 {[%emt 0:00:02]} 22. Qxd7 {[%emt 0:00:10]} Qxd7 {[%emt 0:00:44]} 23. Rxd7 {[%emt 0:00:03]} Kf8 {[%emt 0:00:25]} 24. Rd5 {[%emt 0:12:28]} f6 {[%emt 0:00:47]} 25. Kf1 {[%emt 0:00:43]} Rd8 {[%emt 0:01:10]} 26. Ke2 {[%emt 0:00:28]} Rxd5 {[%emt 0:01:23]} 27. Nxd5 {[%emt 0:00:25]} Rc8 {[%emt 0:00:03]} 28. c3 {[%emt 0:01:13]} f5 {[%emt 0:00:43]} 29. f3 {[%emt 0:08:55]} a5 {[%emt 0:03:30]} 30. Bc2 {[%emt 0:03:12]} e6 {[%emt 0:01:01]} 31. Ne3 {[%emt 0:02:50]} Ke7 {[%emt 0:01:10]} 32. Bd3 {[%emt 0:01:51]} Rb8 $1 {[%emt 0:01:33]} 33. Kd2 {[%emt 0:09:29]} Kd6 {[%emt 0:02:16]} 34. b3 {[%emt 0:06:31]} Kc5 {[%emt 0:01:15]} 35. Nc2 {[%emt 0:01:28]} Rd8 {[%emt 0:00:32]} 36. Ke2 {[%emt 0:00:53]} Rd7 {[%emt 0:01:20]} 37. Ke3 {[%emt 0:01:26]} Rd8 {[%emt 0:00:56]} 38. Ke2 {[%emt 0:00:03]} (38. a4 $16) 38... Rd7 {[%emt 0:00:10]} 39. Ne3 {[%emt 0:02:29]} Rb7 {[%emt 0:02:50]} 40. Nd1 {[%emt 0:00:41]} Rb8 {[%emt 0:02:14]} 41. Nb2 {[%emt 0:31:56]} h5 {[%emt 0:32:23]} 42. b4+ {[%emt 0:00:00]} axb4 {[%emt 0:00:00]} 43. axb4+ {[%emt 0:00:00]} Kc6 {[%emt 0:00:00]} 44. Kd2 {[%emt 0:00:00]} h4 {[%emt 0:00:00]} 45. Bc2 {[%emt 0:00:00]} Ra8 {[%emt 0:00:00]} 46. Bb3 {[%emt 0:00:00]} Ra1 $1 {[%emt 0:00:00]} 47. Nd3 {[%emt 0:00:00]} ({Much worse is} 47. Bxe6 Rg1 $17) 47... Kd6 {[%emt 0:00:00]} 48. Nc1 {[%emt 0:00:00]} Ra3 $16 {[%emt 0:00:00]} (48... e4 $11) 49. Kc2 {[%emt 0:00:00]} g5 {[%emt 0:00:00]} 50. Nd3 {[%emt 0:00:00]} Ra1 {[%emt 0:00:00]} 51. Nc1 {[%emt 0:00:00]} Ra7 {[%emt 0:00:00]} 52. Nd3 {[%emt 0:00:00]} Ra1 {[%emt 0:00:00]} 53. Nc1 {[%emt 0:00:00]} Ra3 1/2-1/2

[Event "GER-chT Youth Countries 2018"]
[Site "Wurzburg"]
[Date "2018.10.04"]
[Round "3"]
[White "Pubantz, Jan"]
[Black "Arakelian, Aik"]
[Result "1-0"]
[ECO "A33"]
[WhiteElo "2084"]
[BlackElo "1879"]
[Annotator "NA RC"]
[PlyCount "37"]
[EventDate "2018.10.03"]
[EventType "team-tourn"]
[EventCountry "GER"]
[SourceTitle "playchess.com"]
[Source "ChessBase"]
[SourceQuality "1"]
[TimeControl "40/5400+30:1800+30"]

{[%evp 19,37,33,124,138,408,430,425,442,541,550,616,640,633,648,991,1039,1018,996,1500,1518]} 1. d4 {[%emt 0:00:00]} Nf6 {[%emt 0:00:00]} 2. c4 {[%emt 0:00:00]} c5 {[%emt 0:00:00]} 3. Nf3 {[%emt 0:00:00]} cxd4 {[%emt 0:00:00]} 4. Nxd4 {[%emt 0:00:00]} Nc6 {[%emt 0:00:00]} 5. Nc3 {[%emt 0:00:34]} e6 {[%emt 0:00:04]} 6. Ndb5 {[%emt 0:02:23]} d5 {[%emt 0:03:45]} 7. Bf4 {[%emt 0:01:00]} e5 {[%emt 0:00:25]} 8. cxd5 {[%emt 0:00:22]} exf4 {[%emt 0:01:03]} 9. dxc6 {[%emt 0:00:19]} Qb6 {[%emt 0:01:27] A33: Symmetrical English: 2 Nf3 Nf6 3 d4 cxd4 4 Nxd4 e6 5 Nc3 Nc6} (9... bxc6 10. Qxd8+ Kxd8 11. Nd4 Bb7 12. g3 c5 13. Nf3 Bd6 14. Nb5 Bxf3 15. exf3 Re8+ 16. Kd1 Be5 17. Kc2 Ke7 18. Bc4 a6 19. Nc3 {½-½ (31) Blomqvist,E (2502)-Vachier Lagrave,M (2793) Caleta 2018}) 10. Qd4 {[%emt 0:32:58]} ({But not} 10. c7 Bd7 $11) 10... Bc5 $146 {[%emt 0:18:05] [#]} ({Predecessor:} 10... Qxd4 $14 11. Nxd4 Bc5 (11... bxc6 12. Nxc6 Bb7 13. Na5 O-O-O 14. Nxb7 Kxb7 15. g3 fxg3 16. hxg3 Bb4 17. Bg2+ Kb6 18. Rh4 a5 19. a3 Bxc3+ 20. bxc3 Nd5 21. Rb1+ Ka6 22. Rc4 Rd6 23. Rd1 {1-0 (23) Dahmen,C (2069)-Klatt,J (2148) Werther 2013})) 11. Qe5+ $1 {[%emt 0:18:47]} ({Stronger than} 11. Qxf4 O-O $11) 11... Be6 $2 {[%emt 0:03:03] [#]} (11... Kf8 {might work better.}) 12. Nc7+ $1 {[%emt 0:03:01]} ({Stronger than} 12. O-O-O O-O $17) 12... Kf8 {[%emt 0:00:18]} 13. O-O-O {[%emt 0:09:33]} ({But not} 13. Nxa8 Bxf2+ 14. Kd1 Qxc6 $18) ({Weaker is} 13. Nxe6+ fxe6 14. e3 (14. Qxf4 $2 Qxb2 15. Qc1 Ba3 $19) 14... fxe3 $14) 13... Rc8 {[%emt 0:02:25]} 14. cxb7 {[%emt 0:01:57]} Rxc7 {[%emt 0:10:51]} 15. Rd8+ {[%emt 0:01:08]} Ke7 {[%emt 0:00:25]} 16. b8=Q $1 {[%emt 0:02:20]} ({Stronger than} 16. Rxh8 Rxb7 17. Na4 (17. b3 $2 Bd4 $19) 17... Bd4 $15) 16... Rb7 {[%emt 0:00:47]} 17. Qxb7+ {[%emt 0:02:01]} (17. Rxh8 Qxb2+ 18. Kd1 Rd7+ 19. Nd5+ Rxd5+ 20. Qxd5 Qa1+ 21. Kc2 Bxd5 $11) 17... Qxb7 {[%emt 0:00:07]} 18. Rxh8 {[%emt 0:00:10]} Bxf2 {[%emt 0:02:30]} 19. e4 $18 {[%emt 0:04:15]} 1-0

[Event "GER-chT Youth Countries 2018"]
[Site "Wurzburg"]
[Date "2018.10.04"]
[Round "3"]
[White "Engel, Robert"]
[Black "Burian, Simon"]
[Result "1/2-1/2"]
[ECO "B54"]
[WhiteElo "2059"]
[BlackElo "2091"]
[Annotator "NA RC"]
[PlyCount "52"]
[EventDate "2018.10.03"]
[EventType "team-tourn"]
[EventCountry "GER"]
[SourceTitle "playchess.com"]
[Source "ChessBase"]
[SourceQuality "1"]
[TimeControl "40/5400+30:1800+30"]

{[%evp 19,52,34,48,40,44,39,50,46,45,59,49,44,47,0,12,7,14,16,6,19,5,0,0,0,0,0,-2,-6,0,0,0,0,0,-4,0]} 1. e4 {[%emt 0:00:00]} c5 {[%emt 0:00:00]} 2. Nf3 {[%emt 0:00:00]} d6 {[%emt 0:00:00]} 3. d4 {[%emt 0:00:00]} cxd4 {[%emt 0:00:01]} 4. Nxd4 {[%emt 0:00:00]} Nf6 {[%emt 0:00:19]} 5. f3 {[%emt 0:00:00]} e5 {[%emt 0:01:04]} 6. Nb3 {[%emt 0:00:00]} d5 {[%emt 0:01:40]} 7. Bg5 {[%emt 0:00:04]} Be6 {[%emt 0:02:33]} 8. Bxf6 {[%emt 0:02:17]} gxf6 {[%emt 0:00:11]} 9. exd5 {[%emt 0:00:05]} Bxd5 {[%emt 0:02:07]} 10. Nc3 {[%emt 0:00:44]} Bb4 {[%emt 0:02:45] B55: Sicilian: 2...d6 3 d4 cxd4 4 Nxd4 Nf6 5 f3} 11. Qd2 {[%emt 0:04:31]} Bc6 {[%emt 0:02:53]} 12. Qxd8+ {[%emt 0:00:50]} Kxd8 {[%emt 0:00:07] LiveBook: 3 Games} 13. O-O-O+ {[%emt 0:00:05]} Nd7 {[%emt 0:02:54]} 14. Nd5 {[%emt 0:02:11]} Bxd5 $1 {[%emt 0:03:54]} 15. Rxd5 {[%emt 0:00:08]} Kc7 $1 {[%emt 0:03:01] [#]} 16. c4 $146 {[%emt 0:12:55]} ({Predecessor:} 16. Bd3 Rag8 17. g3 h5 18. Be4 {1-0 (51) Nisipeanu,L (2686)-Azmaiparashvili,Z (2679) Pune 2004}) 16... Nb6 {[%emt 0:07:53]} 17. Rd1 {[%emt 0:01:24]} Rad8 {[%emt 0:02:47]} 18. Bd3 {[%emt 0:06:58]} h5 {[%emt 0:06:10]} 19. a3 {[%emt 0:15:25]} Bf8 {[%emt 0:02:53]} 20. Be2 {[%emt 0:03:45]} Bh6+ {[%emt 0:02:00]} 21. Kc2 {[%emt 0:00:37]} Nc8 {[%emt 0:06:52]} 22. c5 {[%emt 0:04:31]} Ne7 {[%emt 0:02:42]} 23. Bc4 {[%emt 0:01:38]} Nf5 {[%emt 0:09:34]} 24. Rxd8 {[%emt 0:00:44]} Rxd8 {[%emt 0:00:29]} 25. Bxf7 {[%emt 0:00:42]} Ne3+ {[%emt 0:02:24]} 26. Kc3 {[%emt 0:00:56]} Nd1+ $11 {[%emt 0:00:47]} 1/2-1/2

[Event "GER-chT Youth Countries 2018"]
[Site "Wurzburg"]
[Date "2018.10.04"]
[Round "3"]
[White "Lutz, Ruben"]
[Black "Keyser, Robin"]
[Result "1-0"]
[ECO "A40"]
[WhiteElo "2043"]
[BlackElo "1999"]
[Annotator "NA RC"]
[PlyCount "65"]
[EventDate "2018.10.03"]
[EventType "team-tourn"]
[EventCountry "GER"]
[SourceTitle "playchess.com"]
[Source "ChessBase"]
[SourceQuality "1"]
[TimeControl "40/5400+30:1800+30"]

1. d4 {[%emt 0:00:00]} g6 {[%emt 0:00:00]} 2. Bf4 {[%emt 0:00:00]} Bg7 {[%emt 0:00:09]} 3. e3 {[%emt 0:00:04]} d6 {[%emt 0:00:57]} 4. Nf3 {[%emt 0:01:15]} Nd7 {[%emt 0:01:07]} 5. h3 {[%emt 0:04:21]} Ngf6 {[%emt 0:01:31]} 6. Be2 {[%emt 0:03:27]} O-O {[%emt 0:01:01]} 7. O-O {[%emt 0:00:29]} b6 {[%emt 0:02:30]} 8. a4 {[%emt 0:03:38] A48: 1 d4 Nf6 2 Nf3 g6: Torre, London and Colle Systems} (8. c4 Bb7 9. Nc3 a6 10. Bh2 Qe8 11. d5 e5 12. Nd2 Qe7 13. b4 Kh8 14. a4 a5 15. bxa5 Rxa5 16. Nb3 Raa8 17. a5 {1-0 (39) Karjakin,S (2783)-Nepomniachtchi,I (2751) chess.com INT 2017}) 8... a6 {[%emt 0:01:00]} 9. Nbd2 {[%emt 0:01:14]} Bb7 {[%emt 0:02:09]} 10. c3 {[%emt 0:01:18]} e6 {[%emt 0:03:08]} 11. Bh2 {[%emt 0:06:25]} Qe7 {[%emt 0:03:12]} 12. b4 {[%emt 0:05:13]} e5 {[%emt 0:05:57]} 13. Qb3 {[%emt 0:02:13]} e4 {[%emt 0:02:48]} 14. Ne1 {[%emt 0:00:11]} a5 $146 {[%emt 0:08:24]} ({Predecessor:} 14... h5 15. Rc1 Rab8 16. b5 a5 17. c4 {0-1 (58) De Francesco,K (2265)-Leko,P (2385) Munich 1992}) 15. Nc2 {[%emt 0:03:24]} axb4 {[%emt 0:02:01]} 16. cxb4 {[%emt 0:00:58]} c5 {[%emt 0:07:36]} 17. bxc5 {[%emt 0:11:28]} dxc5 {[%emt 0:00:17]} 18. a5 {[%emt 0:14:55]} Bd5 {[%emt 0:08:50]} 19. Bc4 {[%emt 0:00:26]} Qe6 {[%emt 0:00:49]} 20. axb6 {[%emt 0:08:04]} Rxa1 {[%emt 0:01:01]} 21. Rxa1 {[%emt 0:03:34]} Nxb6 {[%emt 0:01:10]} 22. Bxd5 {[%emt 0:00:15]} Nfxd5 {[%emt 0:00:19]} 23. Ra6 {[%emt 0:06:21]} cxd4 {[%emt 0:08:19]} 24. Nxd4 {[%emt 0:00:08]} Bxd4 {[%emt 0:00:11]} 25. exd4 {[%emt 0:00:03]} Rc8 {[%emt 0:00:31]} 26. Be5 {[%emt 0:02:34]} Rc6 {[%emt 0:06:20]} 27. Nxe4 {[%emt 0:03:54]} f6 {[%emt 0:01:02]} 28. Nc5 {[%emt 0:01:16]} Qe7 {[%emt 0:03:46] [#]} 29. Rxb6 $1 {[%emt 0:01:13]} Rxb6 {[%emt 0:00:03]} 30. Qxd5+ {[%emt 0:00:06]} Kg7 {[%emt 0:00:05]} 31. Bg3 {[%emt 0:04:16]} Qe1+ {[%emt 0:00:54]} 32. Kh2 {[%emt 0:00:04]} Rb1 {[%emt 0:00:47]} (32... Qe7 $18 33. Qc4 Rc6) 33. Ne6+ {[%emt 0:00:36]} 1-0

[Event "GER-chT Youth Countries 2018"]
[Site "Wurzburg"]
[Date "2018.10.04"]
[Round "3"]
[White "Richter, Nils"]
[Black "Astner, Sebastian"]
[Result "1-0"]
[ECO "B15"]
[WhiteElo "2035"]
[BlackElo "1849"]
[Annotator "NA RC"]
[PlyCount "69"]
[EventDate "2018.10.03"]
[EventType "team-tourn"]
[EventCountry "GER"]
[SourceTitle "playchess.com"]
[Source "ChessBase"]
[SourceQuality "1"]
[TimeControl "40/5400+30:1800+30"]

1. e4 c6 2. d4 d5 3. Nc3 dxe4 4. Nxe4 Qd5 5. Nc3 Qd6 6. Bc4 Nf6 7. Nge2 Bg4 8. f3 Bf5 9. Bf4 Qd8 10. a4 e6 11. O-O Bd6 12. Re1 O-O 13. Kh1 Qc7 14. Bxd6 Qxd6 15. Ng3 Bg6 16. Nge4 Nxe4 17. Nxe4 Qc7 18. Qe2 Nd7 19. Rad1 Nb6 20. Bb3 Rad8 {[%emt 0:40:16]} 21. c4 {[%emt 1:04:57]} Rfe8 {[%emt 0:00:30]} 22. Rd2 {[%emt 0:00:30]} Bxe4 {[%emt 0:00:30]} 23. fxe4 {[%emt 0:00:30]} c5 {[%emt 0:00:30]} 24. dxc5 {[%emt 0:00:30]} Qxc5 {[%emt 0:00:30]} 25. Red1 {[%emt 0:00:30]} Rxd2 {[%emt 0:00:30]} 26. Qxd2 {[%emt 0:00:30]} Kf8 {[%emt 0:00:30]} 27. a5 {[%emt 0:00:30]} Nc8 {[%emt 0:00:30]} 28. Ba4 {[%emt 0:00:30]} Qc7 {[%emt 0:00:30]} 29. Qb4+ {[%emt 0:00:30]} Qe7 {[%emt 0:00:30]} 30. Qxe7+ {[%emt 0:00:30]} Kxe7 {[%emt 0:00:30]} 31. Bxe8 {[%emt 0:00:30]} Kxe8 {[%emt 0:00:30]} 32. Kg1 {[%emt 0:00:30]} Ne7 {[%emt 0:00:30]} 33. a6 {[%emt 0:00:30]} bxa6 {[%emt 0:00:30]} 34. Rd6 {[%emt 0:00:30]} Ng6 {[%emt 0:00:30]} 35. Rb6 {[%emt 0:00:30]} 1-0